bitfinex/quotes_BTCUSD_20240712
["timestamp","ask_amount","ask_price","bid_price","bid_amount"]
[1720760422920,0.0394968,57165.0,57164.0,0.2609]
[1720760423549,0.03931516,57165.0,57164.0,0.2609]
[1720760424885,0.14422632,57165.0,57164.0,0.2609]
[1720760425344,0.13922632,57165.0,57164.0,0.2609]
[1720760426876,0.03431516,57165.0,57164.0,0.2609]
[1720760427082,0.004,57165.0,57164.0,0.2609]
[1720760427283,0.13927728,57165.0,57164.0,0.2609]
[1720760427484,0.03438621,57165.0,57164.0,0.2609]
[1720760428525,0.13926748,57165.0,57164.0,0.2609]
[1720760429636,0.13956074,57165.0,57164.0,0.2609]
[1720760430568,0.10887192,57165.0,57164.0,0.2609]
[1720760430808,0.03467809,57165.0,57164.0,0.2609]
[1720760431008,0.13955001,57165.0,57164.0,0.2609]
[1720760432338,0.03467809,57165.0,57164.0,0.2609]
[1720760433940,0.03489806,57165.0,57164.0,0.2609]
[1720760436913,0.03489806,57165.0,57164.0,0.1409]
[1720760437127,0.03489806,57165.0,57164.0,0.2609]
[1720760437329,0.004,57165.0,57164.0,0.2609]
[1720760438177,0.123276,57168.0,57165.0,0.0654]
[1720760438372,0.10486203,57170.0,57169.0,0.12]
[1720760438575,0.50324459,57170.0,57169.0,0.12]
[1720760439019,0.367326,57170.0,57169.0,0.12]
[1720760439608,0.367326,57170.0,57168.0,0.12]
[1720760439861,0.122443,57169.0,57168.0,0.12]
[1720760440112,0.122442,57170.0,57169.0,0.12]
[1720760440457,0.122442,57170.0,57169.0,0.12306353]
[1720760440661,0.122442,57170.0,57169.0,0.12]
[1720760441154,0.122442,57170.0,57169.0,0.123]
[1720760441540,0.13226087,57171.0,57170.0,0.12]
[1720760441736,0.00981987,57171.0,57170.0,0.12]
[1720760441979,0.122438,57172.0,57171.0,0.2629]
[1720760442530,0.025,57175.0,57174.0,0.732165]
[1720760442732,0.025,57175.0,57174.0,0.957065]
[1720760442934,0.025,57175.0,57174.0,1.261931]
[1720760444919,0.025,57175.0,57174.0,1.275931]
[1720760445396,0.025,57175.0,57174.0,1.215931]
[1720760445639,0.025,57175.0,57174.0,1.133931]
[1720760445815,0.025,57175.0,57174.0,1.215931]
[1720760446841,0.025,57175.0,57174.0,0.971065]
[1720760447258,0.025,57175.0,57174.0,0.985065]
[1720760447833,0.025,57175.0,57174.0,0.1709]
[1720760448034,0.025,57175.0,57174.0,0.2909]
[1720760448593,0.025,57175.0,57174.0,0.2629]
[1720760449014,0.025,57175.0,57174.0,0.2899]
[1720760449015,0.0238,57175.0,57174.0,0.2899]
[1720760449221,0.0238,57175.0,57174.0,0.1699]
[1720760449222,0.146231,57175.0,57174.0,0.1699]
[1720760449468,0.41686264,57175.0,57174.0,0.027]
[1720760449878,0.4168659,57175.0,57174.0,0.027]
[1720760450079,0.1720039,57175.0,57174.0,0.027]
[1720760450287,0.146231,57175.0,57174.0,0.133]
[1720760450488,0.0238,57175.0,57174.0,0.133]
[1720760450694,0.0238,57175.0,57174.0,0.124]
[1720760451129,0.0238,57175.0,57174.0,0.1991]
[1720760451349,0.0238,57175.0,57174.0,0.384033]
[1720760451753,0.0238,57175.0,57174.0,0.389033]
[1720760452169,0.0238,57175.0,57174.0,0.633899]
[1720760452376,0.0238,57175.0,57174.0,0.878765]
[1720760452593,0.0238,57175.0,57174.0,1.123631]
[1720760452817,0.00082489,57182.0,57181.0,0.12]
[1720760453067,0.00082489,57182.0,57181.0,0.2576]
[1720760454369,0.00882489,57182.0,57181.0,0.2576]
[1720760455194,0.00882489,57182.0,57181.0,0.380018]
[1720760455195,0.00082489,57182.0,57181.0,0.380018]
[1720760455412,0.00082489,57182.0,57181.0,0.382018]
[1720760455614,0.00082489,57182.0,57181.0,0.384018]
[1720760456887,0.00082489,57182.0,57181.0,0.628854]
[1720760457790,0.00165489,57182.0,57181.0,0.628854]
[1720760459761,0.00165489,57182.0,57181.0,0.87369]
[1720760460389,0.00165489,57182.0,57181.0,1.118526]
[1720760462703,0.00165489,57182.0,57181.0,0.2616]
[1720760463115,0.00165489,57182.0,57181.0,0.1416]
[1720760463374,0.12407089,57182.0,57181.0,0.004]
[1720760463584,0.36890289,57182.0,57181.0,0.004]
[1720760463784,0.12407089,57182.0,57181.0,0.004]
[1720760464388,0.14956063,57182.0,57181.0,0.004]
[1720760464590,0.39439263,57182.0,57181.0,0.004]
[1720760464743,0.63922463,57182.0,57181.0,0.004]
[1720760464962,0.88405663,57182.0,57181.0,0.004]
[1720760465373,1.01485458,57182.0,57181.0,0.004]
[1720760465774,0.12243,57176.0,57173.0,0.12]
[1720760465974,0.244855,57177.0,57171.0,0.0656]
[1720760465975,0.14792074,57175.0,57174.0,0.12]
[1720760466395,0.122431,57175.0,57174.0,0.12]
[1720760466636,0.14818242,57175.0,57174.0,0.12]
[1720760466832,0.14818247,57175.0,57174.0,0.12]
[1720760467165,0.122431,57175.0,57173.0,0.12]
[1720760467858,0.122431,57175.0,57174.0,0.06]
[1720760468130,0.122431,57175.0,57174.0,0.003]
[1720760468384,0.122431,57175.0,57174.0,0.12]
[1720760468619,0.244847,57179.0,57174.0,0.12]
[1720760468825,0.1480337,57178.0,57177.0,0.1845]
[1720760469235,0.02560542,57178.0,57177.0,0.1845]
[1720760469466,0.122424,57179.0,57178.0,0.12]
[1720760469674,0.25639193,57182.0,57177.0,0.0645]
[1720760469675,0.244837,57181.0,57180.0,0.12]
[1720760469879,0.12242,57180.0,57179.0,0.12]
[1720760470083,0.14852716,57180.0,57179.0,0.12]
[1720760470326,0.02610716,57180.0,57179.0,0.1971]
[1720760470563,0.02610716,57180.0,57179.0,0.2632]
[1720760471015,0.00165489,57182.0,57181.0,0.12]
[1720760471233,0.02812229,57182.0,57181.0,0.12]
[1720760472372,0.02812229,57182.0,57181.0,0.122]
[1720760472596,0.02812229,57182.0,57181.0,0.002]
[1720760473518,0.02770278,57182.0,57181.0,0.002]
[1720760473776,0.02770278,57182.0,57181.0,0.122]
[1720760473946,0.02770278,57182.0,57181.0,0.2652]
[1720760474182,0.02770278,57182.0,57181.0,0.634454]
[1720760476240,0.02770278,57182.0,57181.0,0.87929]
[1720760476447,0.00165489,57182.0,57181.0,0.87929]
[1720760476860,0.00165489,57182.0,57181.0,0.93929]
[1720760477096,0.00165489,57182.0,57181.0,0.87929]
[1720760477751,0.00165489,57182.0,57181.0,0.93929]
[1720760478105,0.00165489,57182.0,57181.0,1.124126]
[1720760478306,0.00548773,57191.0,57188.0,0.122402]
[1720760478535,0.00548773,57191.0,57190.0,0.12]
[1720760478912,0.03130468,57191.0,57190.0,0.12]
[1720760479333,0.02581695,57191.0,57190.0,0.2658]
[1720760480223,0.03308445,57191.0,57190.0,0.2668]
[1720760481283,0.03608445,57191.0,57190.0,0.2668]
[1720760481894,0.03308445,57191.0,57190.0,0.2668]
[1720760482300,0.03608445,57191.0,57190.0,0.2678]
[1720760483127,0.03608445,57191.0,57190.0,0.390199]
[1720760483335,0.03608445,57191.0,57190.0,0.879795]
[1720760483768,0.01,57191.0,57190.0,0.879795]
[1720760484645,0.01,57191.0,57190.0,0.634997]
[1720760489204,0.01,57191.0,57190.0,0.879795]
[1720760489408,0.00349455,57192.0,57191.0,0.632489]
[1720760491457,0.00349455,57192.0,57191.0,1.097075]
[1720760491711,0.00349455,57192.0,57191.0,1.606668]
[1720760492013,0.00349455,57192.0,57191.0,1.806668]
[1720760492879,0.00349455,57192.0,57191.0,1.606668]
[1720760493085,0.00432455,57192.0,57191.0,1.606668]
[1720760493289,0.00432455,57192.0,57191.0,0.852282]
[1720760493494,0.00432455,57192.0,57191.0,0.925282]
[1720760493695,0.00432455,57192.0,57191.0,0.879282]
[1720760494026,0.00432455,57192.0,57191.0,0.939282]
[1720760494206,0.00432455,57192.0,57191.0,0.634489]
[1720760495041,0.00432455,57192.0,57191.0,0.389696]
[1720760495241,0.00432455,57192.0,57191.0,0.1723]
[1720760495482,0.00432455,57192.0,57191.0,0.027]
[1720760496288,0.12671855,57192.0,57191.0,0.014]
[1720760496486,0.12671855,57192.0,57191.0,0.023]
[1720760496718,0.12671855,57192.0,57191.0,0.014]
[1720760496937,0.00432455,57192.0,57185.0,0.12]
[1720760497143,0.00432455,57192.0,57191.0,0.005]
[1720760497144,0.12671855,57192.0,57191.0,0.005]
[1720760497279,0.39497219,57192.0,57191.0,0.014]
[1720760497478,0.39497545,57192.0,57191.0,0.014]
[1720760497730,0.39497576,57192.0,57191.0,0.014]
[1720760497949,0.39497576,57192.0,57191.0,0.009]
[1720760498139,0.63976776,57192.0,57191.0,0.009]
[1720760498912,0.122407,57186.0,57185.0,0.12]
[1720760499165,0.122407,57186.0,57181.0,0.00306353]
[1720760499166,0.367248,57182.0,57181.0,0.00306353]
[1720760499364,0.367248,57182.0,57177.0,0.0605]
[1720760499365,0.367273,57178.0,57177.0,0.0605]
[1720760499570,0.612132,57177.0,57176.0,0.076]
[1720760499772,0.13095258,57184.0,57174.0,0.0605]
[1720760499773,0.367285,57176.0,57174.0,0.0605]
[1720760499977,0.612142,57176.0,57174.0,0.0605]
[1720760500195,0.612142,57176.0,57175.0,0.000714]
[1720760500353,0.856999,57176.0,57175.0,0.000714]
[1720760500652,0.612197,57171.0,57170.0,0.00047124]
[1720760500854,0.88086693,57171.0,57170.0,0.00047124]
[1720760501876,0.88386693,57171.0,57170.0,0.00047124]
[1720760502281,0.14922993,57171.0,57170.0,0.00047124]
[1720760502667,0.39410893,57171.0,57170.0,0.00047124]
[1720760502920,0.63898793,57171.0,57170.0,0.00047124]
[1720760503297,0.63598793,57171.0,57170.0,0.00247124]
[1720760503497,0.63598793,57171.0,57170.0,0.00347124]
[1720760503752,0.63487217,57171.0,57170.0,0.00347124]
[1720760503947,0.87975117,57171.0,57170.0,0.00347124]
[1720760504724,0.63487217,57171.0,57170.0,0.00347124]
[1720760504945,0.612197,57171.0,57170.0,0.00347124]
[1720760511148,1.10176126,57171.0,57170.0,0.00347124]
[1720760511394,1.34664026,57171.0,57170.0,0.00347124]
[1720760512121,1.54664026,57171.0,57170.0,0.00247124]
[1720760512360,1.68027828,57171.0,57170.0,0.00347124]
[1720760512603,1.54664026,57171.0,57170.0,0.00247124]
[1720760512858,1.30176126,57171.0,57170.0,0.00247124]
[1720760513106,1.30176126,57171.0,57170.0,0.00047124]
[1720760513346,1.67824299,57171.0,57170.0,0.00147124]
[1720760513579,1.54764026,57171.0,57170.0,0.00147124]
[1720760513815,1.67782349,57171.0,57170.0,0.00147124]
[1720760514292,1.55022031,57171.0,57170.0,0.00247124]
[1720760514559,1.54622031,57171.0,57170.0,0.00047124]
[1720760514835,1.54622031,57171.0,57158.0,0.000913]
[1720760514836,1.102185,57159.0,57158.0,0.000913]
[1720760515091,1.202185,57159.0,57158.0,0.000913]
[1720760515815,0.957255,57159.0,57158.0,0.000913]
[1720760516548,0.980255,57159.0,57158.0,0.000913]
[1720760517775,1.526185,57159.0,57158.0,0.000913]
[1720760518004,1.6791834,57159.0,57158.0,0.000913]
[1720760518267,1.526185,57159.0,57158.0,0.000913]
[1720760518743,1.57094267,57159.0,57158.0,0.000913]
[1720760519883,1.56994267,57159.0,57158.0,0.000913]
[1720760520109,1.57594267,57159.0,57158.0,0.000913]
[1720760520586,1.10236,57150.0,57149.0,0.000913]
[1720760520829,1.30716,57150.0,57149.0,0.000913]
[1720760521068,1.43016,57150.0,57149.0,0.000913]
[1720760521535,1.22536,57150.0,57149.0,0.000913]
[1720760522183,1.23636,57150.0,57149.0,0.000913]
[1720760523861,1.24336,57150.0,57149.0,0.000913]
[1720760524439,1.23636,57150.0,57149.0,0.000913]
[1720760524638,2.18055833,57150.0,57149.0,0.000913]
[1720760524854,2.23602129,57150.0,57149.0,0.000913]
[1720760525049,2.13602129,57150.0,57149.0,0.000913]
[1720760525252,2.03122129,57150.0,57149.0,0.000913]
[1720760525468,1.50401196,57150.0,57149.0,0.000913]
[1720760525948,1.69301196,57150.0,57149.0,0.000913]
[1720760526111,1.93803096,57150.0,57149.0,0.000913]
[1720760526394,1.95263844,57150.0,57149.0,0.000913]
[1720760526606,0.857601,57136.0,57135.0,0.000913]
[1720760526919,0.90211396,57136.0,57135.0,0.000913]
[1720760527142,0.857601,57136.0,57135.0,0.000913]
[1720760527829,0.86155642,57136.0,57135.0,0.000913]
[1720760530702,0.857601,57136.0,57135.0,0.000913]
[1720760534465,0.85753976,57136.0,57135.0,0.000913]
[1720760535354,0.88053976,57136.0,57135.0,0.000913]
[1720760535537,0.98053976,57136.0,57135.0,0.000913]
[1720760535961,1.18053976,57136.0,57135.0,0.000913]
[1720760536603,0.858087,57136.0,57135.0,0.000913]
[1720760536873,0.98137901,57136.0,57135.0,0.000913]
[1720760539736,1.0237247,57136.0,57135.0,0.000913]
[1720760540231,1.49664541,57136.0,57135.0,0.000913]
[1720760540466,1.7389911,57136.0,57135.0,0.000913]
[1720760540697,1.74306544,57136.0,57135.0,0.000913]
[1720760540917,1.54306544,57136.0,57135.0,0.000913]
[1720760541356,1.7389911,57136.0,57135.0,0.000913]
[1720760541585,1.7389911,57136.0,57131.0,0.000913]
[1720760541586,1.702707,57132.0,57131.0,0.000913]
[1720760541819,1.702707,57132.0,57125.0,0.000913]
[1720760541820,0.122536,57126.0,57125.0,0.000913]
[1720760542055,0.73568,57126.0,57125.0,0.000913]
[1720760542288,0.78358544,57126.0,57125.0,0.000913]
[1720760542764,1.02865744,57126.0,57125.0,0.000913]
[1720760543200,0.980752,57126.0,57125.0,0.000913]
[1720760543436,0.980752,57126.0,57125.0,0.065513]
[1720760543437,0.986752,57126.0,57125.0,0.065513]
[1720760543653,0.986752,57126.0,57125.0,0.148413]
[1720760543654,0.963752,57126.0,57125.0,0.148413]
[1720760544744,0.970752,57126.0,57125.0,0.148413]
[1720760545390,0.72568,57126.0,57125.0,0.148413]
[1720760546442,0.71968,57126.0,57125.0,0.268413]
[1720760546865,0.72268,57126.0,57125.0,0.268413]
[1720760547094,0.01,57126.0,57125.0,0.390951]
[1720760547305,0.01,57126.0,57125.0,0.636027]
[1720760547517,0.003,57126.0,57125.0,0.390951]
[1720760547738,0.003,57126.0,57125.0,0.268413]
[1720760547947,0.003,57126.0,57125.0,0.148413]
[1720760548156,0.12253,57129.0,57125.0,0.148413]
[1720760548403,0.12253,57129.0,57126.0,0.00306353]
[1720760550370,0.12253,57129.0,57127.0,0.0642]
[1720760550575,0.12253,57129.0,57128.0,0.00306353]
[1720760551244,0.12553,57129.0,57128.0,0.00306353]
[1720760551481,0.12853,57129.0,57128.0,0.00306353]
[1720760551958,0.12553,57129.0,57128.0,0.00306353]
[1720760552179,0.12853,57129.0,57128.0,0.00306353]
[1720760552419,0.006,57129.0,57128.0,0.26486353]
[1720760552624,0.006,57129.0,57128.0,0.2618]
[1720760553073,0.006,57129.0,57128.0,0.25266482]
[1720760553553,0.003,57129.0,57128.0,0.25266482]
[1720760554068,0.006,57129.0,57128.0,0.25266482]
[1720760557509,0.006,57129.0,57128.0,0.62025882]
[1720760557744,0.22251474,57155.0,57128.0,0.62025882]
[1720760557745,0.2048,57156.0,57143.0,0.11086482]
[1720760558032,0.2048,57156.0,57138.0,0.245019]
[1720760558033,0.00983119,57148.0,57144.0,0.24676482]
[1720760558276,0.10083,57158.0,57146.0,0.11086482]
[1720760558525,0.122486,57149.0,57147.0,0.11086482]
[1720760558784,0.122486,57149.0,57146.0,0.11086482]
[1720760559285,0.10083,57158.0,57144.0,0.1359]
[1720760559286,0.08511435,57154.0,57144.0,0.1359]
[1720760559526,0.367485,57145.0,57144.0,0.1359]
[1720760561896,0.613475,57145.0,57144.0,0.1359]
[1720760564172,0.613475,57145.0,57144.0,0.1399]
[1720760564173,0.858465,57145.0,57144.0,0.1399]
[1720760564420,0.858465,57145.0,57144.0,0.004]
[1720760564421,0.9443109,57145.0,57144.0,0.004]
[1720760564675,0.97145515,57145.0,57144.0,0.004]
[1720760564901,0.97146232,57145.0,57144.0,0.004]
[1720760565125,0.88561642,57145.0,57144.0,0.004]
[1720760565613,0.612517,57141.0,57140.0,0.1426]
[1720760566463,0.63980685,57141.0,57140.0,0.1426]
[1720760567182,0.63989648,57141.0,57140.0,0.1426]
[1720760567862,0.63989649,57141.0,57140.0,0.1426]
[1720760568553,0.63989649,57141.0,57130.0,0.141]
[1720760568554,0.367575,57131.0,57130.0,0.141]
[1720760569999,0.367575,57131.0,57130.0,0.25186482]
[1720760570000,0.122525,57131.0,57130.0,0.25186482]
[1720760570213,0.245045,57133.0,57128.0,0.000913]
[1720760570214,0.122521,57133.0,57132.0,0.11086482]
[1720760570418,0.122521,57133.0,57132.0,0.25736482]
[1720760570636,0.367563,57133.0,57132.0,0.25736482]
[1720760571061,0.122521,57133.0,57132.0,0.25736482]
[1720760571897,0.122521,57133.0,57132.0,0.26136482]
[1720760572127,0.001,57133.0,57132.0,0.26136482]
[1720760574215,0.02826343,57133.0,57132.0,0.38388782]
[1720760574430,0.001,57133.0,57132.0,0.38388782]
[1720760575107,0.001,57133.0,57132.0,0.26136482]
[1720760575319,0.02825929,57133.0,57132.0,0.1505]
[1720760576058,0.15077974,57133.0,57132.0,0.1505]
[1720760577002,0.123521,57133.0,57132.0,0.1505]
[1720760577213,0.02775283,57133.0,57132.0,0.26136482]
[1720760577835,0.02761376,57133.0,57132.0,0.26136482]
[1720760580918,0.02773968,57133.0,57132.0,0.26136482]
[1720760581888,0.001,57133.0,57132.0,0.26136482]
[1720760582567,0.02807504,57133.0,57132.0,0.26136482]
[1720760583429,0.001,57133.0,57132.0,0.26136482]
[1720760583682,0.001,57133.0,57132.0,0.93397982]
[1720760585365,0.001,57133.0,57132.0,1.17902582]
[1720760587481,0.001,57133.0,57132.0,1.17502582]
[1720760587822,0.1,57147.0,57132.0,1.17502582]
[1720760588033,0.13100571,57150.0,57149.0,0.11086482]
[1720760588256,0.02772949,57150.0,57149.0,0.11086482]
[1720760588489,0.02772949,57150.0,57149.0,0.25036482]
[1720760589486,0.03972949,57150.0,57149.0,0.25036482]
[1720760590368,0.02772949,57150.0,57149.0,0.25036482]
[1720760590578,0.1,57153.0,57152.0,0.11086482]
[1720760590788,0.12749309,57153.0,57152.0,0.11086482]
[1720760591546,0.02749309,57153.0,57152.0,0.11086482]
[1720760591765,0.01025995,57159.0,57157.0,0.10486482]
[1720760591966,0.01025995,57159.0,57157.0,0.24376482]
[1720760591967,0.03775188,57159.0,57157.0,0.24376482]
[1720760592169,0.02832193,57158.0,57157.0,0.24376482]
[1720760592607,0.02832193,57158.0,57157.0,0.23276482]
[1720760593203,0.15078893,57158.0,57157.0,0.1459]
[1720760593417,0.15078893,57158.0,57153.0,0.1383]
[1720760593616,0.02749193,57157.0,57153.0,0.1383]
[1720760593862,0.123297,57158.0,57153.0,0.1383]
[1720760593863,0.02749193,57156.0,57153.0,0.1383]
[1720760594064,0.123297,57158.0,57153.0,0.1383]
[1720760594065,0.027017,57155.0,57153.0,0.1383]
[1720760594295,0.123297,57158.0,57153.0,0.1383]
[1720760594485,0.02721607,57157.0,57153.0,0.1383]
[1720760594687,0.02721607,57157.0,57150.0,0.33182982]
[1720760594688,0.018,57155.0,57148.0,0.0798]
[1720760594918,0.122491,57147.0,57146.0,0.0613]
[1720760595069,0.122489,57148.0,57146.0,0.14816482]
[1720760595465,0.122489,57148.0,57141.0,0.025]
[1720760595466,0.244978,57148.0,57141.0,0.025]
[1720760595677,0.1225,57143.0,57141.0,0.025]
[1720760596198,0.244978,57148.0,57141.0,0.025]
[1720760596199,0.367504,57142.0,57141.0,0.025]
[1720760596412,0.63986396,57142.0,57141.0,0.025]
[1720760596614,0.02736134,57142.0,57141.0,0.025]
[1720760596822,0.244981,57148.0,57146.0,0.08686482]
[1720760596823,0.122491,57147.0,57146.0,0.08686482]
[1720760597001,0.14983884,57147.0,57146.0,0.08686482]
[1720760597203,0.39481688,57147.0,57146.0,0.08686482]
[1720760598769,0.39481688,57147.0,57146.0,0.14796482]
[1720760599604,0.39481688,57147.0,57146.0,0.15096482]
[1720760600035,0.39481688,57147.0,57146.0,0.0641]
[1720760600246,0.14223739,57147.0,57146.0,0.0641]
[1720760600681,0.122491,57147.0,57146.0,0.0641]
[1720760600908,0.00992826,57148.0,57147.0,0.08686482]
[1720760601120,0.13103421,57151.0,57150.0,0.08686482]
[1720760601366,0.13103421,57155.0,57151.0,0.08686482]
[1720760601586,0.13186421,57158.0,57155.0,0.20933782]
[1720760601815,0.13186421,57158.0,57157.0,0.08686482]
[1720760601816,0.00083,57158.0,57157.0,0.08686482]
[1720760602470,0.00083,57158.0,57155.0,0.08686482]
[1720760603110,0.00083,57158.0,57157.0,0.08686482]
[1720760603316,0.00083,57158.0,57157.0,0.08786482]
[1720760603317,0.00583,57158.0,57157.0,0.08786482]
[1720760603736,0.00583,57158.0,57157.0,0.23606482]
[1720760603737,0.01283,57158.0,57157.0,0.23606482]
[1720760604172,0.01283,57158.0,57157.0,0.60347282]
[1720760605655,0.00783,57158.0,57157.0,0.60247282]
[1720760605867,0.00783,57158.0,57157.0,0.35753382]
[1720760606074,0.00783,57158.0,57157.0,0.23506482]
[1720760606075,0.01083,57158.0,57157.0,0.23506482]
[1720760606546,0.00783,57158.0,57157.0,0.23506482]
[1720760606979,0.00783,57158.0,57157.0,0.60347282]
[1720760606980,0.01083,57158.0,57157.0,0.60347282]
[1720760607623,0.01083,57158.0,57157.0,0.90841182]
[1720760607835,0.01083,57158.0,57157.0,0.66347282]
[1720760608043,0.01083,57158.0,57157.0,0.60347282]
[1720760608865,0.00783,57158.0,57157.0,0.60247282]
[1720760609084,0.00083,57158.0,57157.0,0.60147282]
[1720760609291,0.00383,57158.0,57157.0,0.60147282]
[1720760609871,0.00783,57158.0,57157.0,0.60147282]
[1720760616799,0.00783,57158.0,57157.0,1.09135082]
[1720760617038,0.00783,57158.0,57157.0,1.15135082]
[1720760617226,0.00783,57158.0,57157.0,1.09135082]
[1720760618216,0.00383,57158.0,57157.0,1.09135082]
[1720760618423,0.00383,57158.0,57157.0,1.15135082]
[1720760619015,0.00083,57158.0,57157.0,1.15135082]
[1720760619189,0.00083,57158.0,57157.0,1.16335082]
[1720760619611,0.00083,57158.0,57157.0,1.16135082]
[1720760619808,0.00083,57158.0,57157.0,1.17535082]
[1720760620211,0.00083,57158.0,57157.0,1.16535082]
[1720760620610,0.00083,57158.0,57157.0,0.38453382]
[1720760620968,0.00083,57158.0,57157.0,0.93441182]
[1720760621184,0.00083,57158.0,57157.0,1.17935082]
[1720760621601,0.00083,57158.0,57157.0,1.16535082]
[1720760622082,0.00083,57158.0,57157.0,1.15135082]
[1720760622293,0.00083,57158.0,57157.0,1.09135082]
[1720760622504,0.00083,57158.0,57157.0,0.86041182]
[1720760622711,0.00083,57158.0,57157.0,0.84641182]
[1720760623129,0.00083,57158.0,57157.0,0.1612]
[1720760623339,0.00083,57158.0,57157.0,0.11486482]
[1720760623557,0.123297,57158.0,57157.0,0.11486482]
[1720760623979,0.123297,57158.0,57157.0,0.10086482]
[1720760624211,0.124297,57158.0,57157.0,0.11486482]
[1720760624637,0.614167,57158.0,57157.0,0.028]
[1720760624844,0.613167,57158.0,57157.0,0.014]
[1720760625309,0.613167,57158.0,57157.0,0.006]
[1720760625310,0.96770429,57158.0,57157.0,0.006]
[1720760625778,0.88129489,57158.0,57157.0,0.013]
[1720760626023,0.88129489,57158.0,57157.0,0.006]
[1720760626255,0.63635989,57158.0,57157.0,0.006]
[1720760626459,0.61296779,57158.0,57157.0,0.009]
[1720760626668,0.61296779,57158.0,57157.0,0.006]
[1720760626878,0.61296779,57158.0,57148.0,0.06366353]
[1720760626879,0.244973,57149.0,57148.0,0.06366353]
[1720760627109,0.244973,57149.0,57148.0,0.00306353]
[1720760627110,0.367459,57149.0,57148.0,0.00306353]
[1720760627334,0.122486,57149.0,57147.0,0.08686482]
[1720760627569,0.122486,57149.0,57146.0,0.56396482]
[1720760627797,0.122488,57148.0,57146.0,0.56396482]
[1720760628747,0.39125479,57147.0,57146.0,0.4771]
[1720760628966,0.63623679,57147.0,57146.0,0.4771]
[1720760629891,0.1225,57143.0,57141.0,0.025]
[1720760630122,0.02378179,57142.0,57141.0,0.025]
[1720760630349,0.244978,57148.0,57146.0,0.08686482]
[1720760630607,0.02370426,57147.0,57146.0,0.08886482]
[1720760630860,0.122491,57147.0,57146.0,0.08886482]
[1720760631101,0.14631595,57147.0,57146.0,0.08886482]
[1720760631322,0.14631595,57147.0,57146.0,0.08986482]
[1720760631574,0.122491,57147.0,57146.0,0.08986482]
[1720760631808,0.14604718,57147.0,57146.0,0.08986482]
[1720760632293,0.122491,57147.0,57146.0,0.08986482]
[1720760632680,0.14606259,57147.0,57146.0,0.08786482]
[1720760633131,0.39104459,57147.0,57146.0,0.001]
[1720760633549,0.39104459,57147.0,57146.0,0.003]
[1720760634390,0.367473,57147.0,57146.0,0.003]
[1720760634599,0.39098564,57147.0,57146.0,0.003]
[1720760634806,0.39100829,57147.0,57146.0,0.003]
[1720760637525,0.367473,57147.0,57146.0,0.003]
[1720760642727,0.367473,57147.0,57146.0,0.08986482]
[1720760642933,0.122491,57147.0,57146.0,0.22986482]
[1720760643368,0.367473,57147.0,57146.0,0.143]
[1720760643573,0.12249,57148.0,57146.0,0.22986482]
[1720760644620,0.12249,57148.0,57146.0,0.22886482]
[1720760645237,0.12249,57148.0,57146.0,0.142]
[1720760645444,0.12249,57148.0,57146.0,0.22886482]
[1720760646059,0.12249,57148.0,57146.0,0.22686482]
[1720760647881,0.12249,57148.0,57146.0,0.22986482]
[1720760648470,0.122486,57149.0,57147.0,0.08686482]
[1720760648671,0.122486,57149.0,57148.0,0.08686482]
[1720760649294,0.14673025,57149.0,57148.0,0.08686482]
[1720760650239,0.14673025,57149.0,57148.0,0.08886482]
[1720760650592,0.14678966,57149.0,57148.0,0.08886482]
[1720760651007,0.02430366,57149.0,57148.0,0.08886482]
[1720760651228,0.02430366,57149.0,57148.0,0.002]
[1720760651431,0.14678966,57149.0,57148.0,0.002]
[1720760653280,0.14678966,57149.0,57148.0,0.003]
[1720760654189,0.39176266,57149.0,57148.0,0.003]
[1720760654644,0.39155545,57149.0,57148.0,0.003]
[1720760655811,0.39155545,57149.0,57148.0,0.08986482]
[1720760656273,0.39155545,57149.0,57148.0,0.003]
[1720760656943,0.39152624,57149.0,57148.0,0.003]
[1720760657680,0.39152367,57149.0,57148.0,0.003]
[1720760658562,0.39152367,57149.0,57148.0,0.08986482]
[1720760660961,0.02406467,57149.0,57148.0,0.08986482]
[1720760661166,0.02414869,57150.0,57148.0,0.08986482]
[1720760661411,0.367453,57150.0,57149.0,0.00306353]
[1720760661649,0.39160168,57150.0,57149.0,0.00306353]
[1720760661872,0.122486,57149.0,57148.0,0.003]
[1720760662092,0.14663468,57149.0,57148.0,0.003]
[1720760662587,0.14663468,57149.0,57146.0,0.140913]
[1720760662818,0.02414868,57148.0,57147.0,0.00306353]
[1720760663726,0.02414868,57148.0,57146.0,0.22777782]
[1720760664217,0.02414868,57148.0,57147.0,0.08686482]
[1720760664450,0.02435905,57148.0,57147.0,0.08686482]
[1720760664677,0.02435905,57148.0,57146.0,0.22777782]
[1720760664909,0.02441618,57147.0,57146.0,0.140913]
[1720760666458,0.02441618,57147.0,57146.0,0.144913]
[1720760666885,0.02441618,57147.0,57146.0,0.147913]
[1720760667110,0.0241738,57147.0,57146.0,0.147913]
[1720760667365,0.1553657,57147.0,57146.0,0.147913]
[1720760667831,0.122489,57148.0,57146.0,0.147913]
[1720760668060,0.155418,57147.0,57146.0,0.147913]
[1720760668547,0.1466648,57147.0,57146.0,0.147913]
[1720760669008,0.1466648,57147.0,57146.0,0.003913]
[1720760669259,0.1466648,57147.0,57146.0,0.000913]
[1720760669701,0.3916468,57147.0,57146.0,0.002913]
[1720760669884,0.3916468,57147.0,57146.0,0.005913]
[1720760670082,0.3916468,57147.0,57146.0,0.000913]
[1720760670566,0.3916468,57147.0,57146.0,0.007913]
[1720760671441,0.5493761,57147.0,57146.0,0.007913]
[1720760674902,0.367473,57147.0,57146.0,0.007913]
[1720760675113,1.03933159,57147.0,57146.0,0.007913]
[1720760675330,1.33258117,57147.0,57146.0,0.007913]
[1720760675549,1.55558117,57147.0,57146.0,0.007913]
[1720760675764,0.612605,57133.0,57132.0,0.1395]
[1720760675990,0.71876717,57133.0,57132.0,0.51068611]
[1720760676211,0.71876717,57133.0,57129.0,0.063913]